bitfinex/quotes_ETHUSD_20251010
["timestamp","ask_amount","ask_price","bid_price","bid_amount"]
[1760136935365,1.09869999,3869.2,3869.1,7.3269441]
[1760136935569,0.0987,3869.2,3869.1,7.3269441]
[1760136935775,0.99999999,3868.4,3867.9,0.66232813]
[1760136935963,0.99999999,3867.2,3860.2,0.00171]
[1760136936274,0.0888,3867.2,3860.2,0.00171]
[1760136936475,0.0888,3867.2,3866.1,1.23]
[1760136936682,0.2065,3867.1,3866.1,1.187]
[1760136936874,0.1086,3866.2,3866.1,0.968]
[1760136937060,0.2076,3866.2,3866.1,0.968]
[1760136937252,0.2076,3866.2,3866.1,0.56692453]
[1760136937451,0.2076,3866.2,3866.1,0.02609556]
[1760136937858,0.2076,3866.2,3866.1,1.25609556]
[1760136939265,0.2076,3866.2,3866.1,2.48609556]
[1760136939482,0.2076,3866.2,3866.1,2.1353007]
[1760136940696,0.2076,3866.2,3866.1,3.22956588]
[1760136941684,0.2076,3866.2,3866.1,0.89856588]
[1760136941881,0.2076,3866.2,3866.1,2.12856588]
[1760136942388,0.2076,3866.2,3866.1,1.96069467]
[1760136943251,0.2076,3866.2,3866.1,2.97169467]
[1760136943468,0.2076,3866.2,3866.1,2.83603558]
[1760136944501,0.2076,3866.2,3866.1,4.06603558]
[1760136945370,0.2076,3866.2,3866.1,3.41603558]
[1760136945971,0.2076,3866.2,3866.1,4.64603558]
[1760136946192,0.2076,3866.2,3866.1,2.53403558]
[1760136946596,0.2076,3866.2,3866.1,2.39839077]
[1760136947374,0.2076,3866.2,3866.1,3.62839077]
[1760136948900,0.2076,3866.2,3866.1,4.85839077]
[1760136950295,0.2076,3866.2,3866.1,6.08839077]
[1760136950496,0.2076,3866.2,3866.1,6.09039077]
[1760136951018,0.001,3867.1,3866.1,6.09039077]
[1760136951823,0.001,3867.1,3866.1,7.32039077]
[1760136952344,0.001,3867.1,3866.1,7.10139077]
[1760136952510,0.001,3867.1,3866.1,4.98939077]
[1760136953207,0.001,3867.1,3866.1,5.66060086]
[1760136953936,0.001,3867.1,3866.1,5.52493067]
[1760136954303,0.001,3867.1,3866.1,5.30593067]
[1760136954504,0.001,3867.1,3866.1,3.19393067]
[1760136954712,0.001,3867.1,3866.1,4.42393067]
[1760136955725,0.001,3867.1,3866.1,4.31533067]
[1760136956110,0.099,3867.0,3866.1,5.54533067]
[1760136956437,0.099,3866.9,3866.1,5.54533067]
[1760136956629,0.099,3866.8,3866.1,5.54533067]
[1760136956942,0.099,3866.7,3866.1,5.54533067]
[1760136957138,0.099,3866.6,3866.1,5.54533067]
[1760136957337,0.099,3866.5,3866.1,4.66333067]
[1760136957644,0.099,3866.4,3866.1,4.66333067]
[1760136957838,0.099,3866.3,3866.1,4.66333067]
[1760136958146,0.099,3866.2,3866.1,4.66333067]
[1760136958841,0.099,3866.2,3866.1,5.89333067]
[1760136959220,0.099,3866.2,3866.1,3.78133067]
[1760136960143,0.099,3866.2,3866.1,5.01133067]
[1760136961664,0.099,3866.2,3866.1,4.12933067]
[1760136963163,0.099,3866.2,3866.1,5.35933067]
[1760136963463,0.099,3866.2,3866.1,5.14033067]
[1760136963767,0.099,3866.2,3866.1,4.49033067]
[1760136964663,0.099,3866.2,3866.1,5.72033067]
[1760136965234,0.099,3866.2,3866.1,3.60833067]
[1760136965680,0.001,3867.1,3866.1,3.60833067]
[1760136965834,0.099,3867.0,3866.1,4.83833067]
[1760136966034,0.099,3866.9,3866.1,4.83833067]
[1760136966254,0.099,3866.8,3866.1,4.83833067]
[1760136966443,0.099,3866.7,3866.1,4.83833067]
[1760136966650,0.099,3866.6,3866.1,4.83833067]
[1760136966881,0.099,3866.5,3866.1,4.18833067]
[1760136967048,0.099,3866.4,3866.1,4.18833067]
[1760136967249,0.099,3866.3,3866.1,3.30633067]
[1760136967451,0.001,3867.1,3866.1,3.30633067]
[1760136967670,0.099,3867.0,3866.1,3.30633067]
[1760136967865,0.099,3866.9,3866.1,3.30633067]
[1760136968080,0.099,3866.8,3866.1,3.30633067]
[1760136968349,0.099,3866.7,3866.1,3.30833067]
[1760136968575,0.099,3866.6,3866.1,3.30833067]
[1760136968871,0.001,3867.1,3866.2,0.4439]
[1760136969072,0.001,3867.1,3866.2,0.6583]
[1760136969442,0.001,3867.1,3866.1,4.53833067]
[1760136970152,0.001,3867.1,3866.2,0.4439]
[1760136970590,0.001,3867.1,3866.1,5.76833067]
[1760136971365,0.099,3867.0,3866.1,4.88633067]
[1760136971750,0.001,3867.1,3866.1,4.88633067]
[1760136972099,0.001,3867.1,3866.1,1.19633067]
[1760136972581,0.097,3867.0,3866.1,1.19633067]
[1760136972750,0.097,3866.9,3866.1,2.42633067]
[1760136972951,0.001,3867.1,3866.1,2.42633067]
[1760136972952,0.097,3866.8,3866.1,2.42633067]
[1760136973143,0.097,3866.7,3866.1,2.42633067]
[1760136973347,0.097,3866.6,3866.1,2.42633067]
[1760136973576,0.001,3867.1,3866.1,0.31433067]
[1760136973779,0.097,3866.5,3866.1,0.31433067]
[1760136973953,0.097,3866.4,3866.1,0.31433067]
[1760136974149,0.097,3866.3,3866.1,1.35120126]
[1760136974379,0.097,3866.2,3866.1,1.35120126]
[1760136975480,0.097,3866.2,3866.1,0.46920126]
[1760136976808,0.097,3866.2,3866.1,1.69920126]
[1760136978141,0.097,3866.2,3866.1,2.92920126]
[1760136979477,0.001,3867.1,3866.1,4.15920126]
[1760136979677,0.097,3866.8,3866.1,4.15920126]
[1760136980097,0.001,3867.1,3866.1,4.15920126]
[1760136980815,0.001,3867.5,3866.2,0.14389999]
[1760136981410,0.001,3867.5,3866.1,5.38920126]
[1760136982003,0.001,3867.5,3866.1,3.27720126]
[1760136982399,0.001,3867.5,3866.1,4.50720126]
[1760136983012,0.001,3867.5,3866.2,0.4439]
[1760136983826,0.001,3867.5,3866.2,1.6739]
[1760136984506,0.001,3867.5,3866.2,1.23]
[1760136985137,0.001,3867.5,3866.2,2.46]
[1760136985138,0.001,3867.4,3866.2,2.46]
[1760136985839,0.1005,3867.3,3866.2,2.46]
[1760136986408,0.1005,3867.3,3866.2,3.69]
[1760136986616,0.001,3867.4,3866.2,3.69]
[1760136986811,0.001,3867.4,3866.3,0.4614]
[1760136987713,0.001,3867.4,3866.3,1.6914]
[1760136988217,0.001,3867.4,3866.4,0.4614]
[1760136988840,0.001,3867.5,3866.4,0.4614]
[1760136989144,0.001,3867.8,3866.4,0.4614]
[1760136989353,0.001,3867.8,3866.4,1.6914]
[1760136989856,0.001,3867.8,3866.5,0.4614]
[1760136990774,0.001,3867.8,3866.5,1.6914]
[1760136991123,0.001,3867.8,3866.6,0.4614]
[1760136991752,0.001,3867.9,3866.7,0.00934866]
[1760136991919,0.001,3867.9,3866.8,0.4614]
[1760136992128,0.001,3867.9,3866.9,0.01367265]
[1760136992329,0.001,3867.9,3867.0,0.4614]
[1760136992531,0.005,3869.9,3867.0,0.4614]
[1760136992751,0.005,3869.9,3868.8,0.2359]
[1760136993177,0.005,3869.9,3868.8,0.6973]
[1760136993457,0.005,3869.9,3868.8,1.9273]
[1760136993655,0.005,3869.9,3868.8,1.6914]
[1760136993828,1.21948251,3868.9,3868.8,1.23]
[1760136994360,0.005,3868.9,3868.8,1.23]
[1760136994725,0.005,3868.9,3868.8,2.46]
[1760136995333,0.005,3868.9,3868.8,2.9214]
[1760136996756,0.005,3868.9,3868.8,4.1514]
[1760136997983,0.005,3868.9,3868.8,5.3814]
[1760136999354,1.21948251,3868.9,3868.8,6.15]
[1760137000071,0.005,3868.9,3868.8,6.15]
[1760137000272,1.21948251,3868.9,3868.8,6.15]
[1760137000638,0.005,3868.9,3868.8,7.38]
[1760137000839,0.005,3868.9,3868.8,6.08]
[1760137001040,0.005,3868.9,3868.8,5.388]
[1760137001245,0.005,3868.9,3868.8,3.00107569]
[1760137002151,0.006,3868.9,3868.8,4.23107569]
[1760137002752,0.006,3868.9,3868.8,4.22427569]
[1760137002953,0.006,3868.9,3868.8,4.12287569]
[1760137003475,0.006,3868.9,3868.8,5.35287569]
[1760137004146,0.006,3868.9,3868.8,5.81427569]
[1760137004559,0.006,3868.9,3868.8,5.35287569]
[1760137004766,0.006,3868.9,3868.8,6.58287569]
[1760137005744,0.76526198,3868.9,3868.8,5.95107569]
[1760137005944,0.76526198,3868.9,3868.8,4.84737569]
[1760137006144,1.76526197,3868.9,3868.8,4.39525992]
[1760137006345,0.76526198,3868.9,3868.8,5.62525992]
[1760137006646,0.76537702,3868.9,3868.8,5.62525992]
[1760137007275,0.105,3868.9,3868.8,5.62525992]
[1760137007481,0.76522618,3868.9,3868.8,5.62525992]
[1760137007679,0.76522618,3868.9,3868.8,6.85525992]
[1760137007992,0.105,3868.9,3868.8,6.85525992]
[1760137008364,0.006,3868.9,3868.8,6.84838427]
[1760137008676,0.006,3868.9,3868.8,6.83498427]
[1760137009065,0.006,3868.9,3868.8,8.06498427]
[1760137010395,0.006,3868.9,3868.8,8.61866226]
[1760137011091,0.006,3868.9,3868.8,8.09086226]
[1760137011751,0.006,3868.9,3868.8,9.32086226]
[1760137011991,0.006,3868.9,3868.8,9.74986226]
[1760137012198,0.006,3868.9,3868.8,9.32086226]
[1760137013303,0.006,3868.9,3868.8,10.55086226]
[1760137013809,0.105,3868.9,3868.8,10.55086226]
[1760137013979,0.006,3868.9,3868.8,10.55086226]
[1760137014312,0.105,3868.9,3868.8,9.30328751]
[1760137014476,0.105,3868.9,3868.8,10.53328751]
[1760137014976,0.105,3868.9,3868.8,10.08118751]
[1760137014977,1.10499999,3868.9,3868.8,10.08118751]
[1760137015175,0.105,3868.9,3868.8,10.08118751]
[1760137015805,1.10499999,3868.9,3868.8,10.08118751]
[1760137016005,0.105,3868.9,3868.8,11.31118751]
[1760137016913,1.10499999,3868.9,3868.8,11.31118751]
[1760137017116,0.105,3868.9,3868.8,11.26278751]
[1760137017277,1.10499999,3868.9,3868.8,12.49278751]
[1760137018798,0.105,3868.9,3866.5,1.1807436]
[1760137018975,0.1456,3866.6,3866.5,1.1807436]
[1760137019175,1.24509999,3866.6,3866.5,1.1807436]
[1760137019777,0.2451,3866.6,3866.5,1.1807436]
[1760137019987,0.2451,3866.6,3866.5,2.4107436]
[1760137020201,1.24509999,3866.6,3866.5,1.9383436]
[1760137020677,1.24509999,3866.6,3866.5,0.67454994]
[1760137021073,1.24509999,3866.6,3866.4,1.23]
[1760137021074,0.2451,3866.6,3866.4,0.66724994]
[1760137021320,0.0995,3866.5,3866.4,0.65081438]
[1760137021605,1.09949999,3866.5,3866.4,0.51941438]
[1760137022111,1.09949999,3866.5,3866.4,0.28391438]
[1760137022308,0.0995,3866.5,3866.3,0.92171438]
[1760137022512,1.39643833,3866.4,3866.3,0.92171438]
[1760137022816,0.0995,3866.4,3866.3,2.11477278]
[1760137022978,0.0995,3866.4,3866.3,1.13017278]
[1760137023402,2.09949999,3866.4,3866.3,0.55887278]
[1760137023622,2.09949999,3866.4,3866.2,3.60447278]
[1760137023914,0.0995,3866.3,3866.2,2.83128736]
[1760137024419,0.0995,3866.3,3866.2,1.83128736]
[1760137024728,0.0995,3866.3,3866.2,1.81788736]
[1760137024879,1.09949999,3866.3,3866.2,0.60217755]
[1760137025607,1.09949999,3866.3,3866.2,1.83217755]
[1760137025781,1.09949999,3866.3,3866.2,1.76297755]
[1760137025981,1.09949999,3866.3,3866.1,3.27217881]
[1760137026177,0.0995,3866.2,3866.1,2.50197881]
[1760137026679,0.0995,3866.2,3866.1,3.73197881]
[1760137026874,1.09949999,3866.2,3866.1,2.51287881]
[1760137027080,1.09949999,3866.2,3866.1,0.50387881]
[1760137027280,0.0995,3866.2,3866.1,0.17787881]
[1760137027513,1.09949999,3866.2,3866.1,0.16097881]
[1760137028086,0.0995,3866.2,3866.1,1.39097881]
[1760137028422,0.0995,3866.2,3866.1,0.13857748]
[1760137028726,1.09949999,3866.2,3866.1,0.05487748]
[1760137028920,1.09949999,3866.2,3865.1,1.27604695]
[1760137028921,0.99999999,3865.2,3865.1,1.27604695]
[1760137029089,1.09999999,3865.2,3865.1,0.27604695]
[1760137029533,1.09999999,3865.2,3865.1,0.50604695]
[1760137030126,1.09999999,3865.2,3865.1,0.25454695]
[1760137030331,0.1,3865.2,3865.1,0.25454695]
[1760137030624,0.7910969,3865.2,3865.0,2.21177183]
[1760137030831,0.1,3865.1,3865.0,3.44177183]
[1760137030998,0.1,3865.1,3865.0,3.31187183]
[1760137031183,0.1,3865.1,3865.0,2.31287183]
[1760137031383,0.7910969,3865.1,3865.0,2.31287183]
[1760137032323,0.7910969,3865.1,3865.0,3.54287183]
[1760137032511,0.1,3865.1,3865.0,3.54287183]
[1760137032708,0.1,3865.1,3865.0,3.03187183]
[1760137032915,0.7910969,3865.1,3865.0,3.03187183]
[1760137033111,0.7910969,3865.1,3865.0,2.47797183]
[1760137033434,0.7910969,3865.1,3865.0,0.84117183]
[1760137033599,0.7910969,3865.1,3865.0,1.07117183]
[1760137033931,0.7910969,3865.1,3865.0,0.02836463]
[1760137034223,0.1,3865.1,3864.2,13.52836463]
[1760137034425,0.6910969,3864.3,3864.2,12.55836463]
[1760137034651,0.7910969,3864.3,3864.2,12.38486463]
[1760137034814,0.7910969,3864.3,3864.2,11.60686463]
[1760137035015,0.7910969,3864.3,3864.2,12.83686463]
[1760137035215,0.7910969,3864.3,3864.2,11.76576463]
[1760137035413,0.7910969,3864.3,3864.2,10.83326463]
[1760137035857,0.7910969,3864.3,3864.2,9.03266463]
[1760137036015,0.7910969,3864.3,3864.2,7.01871563]
[1760137036428,0.7910969,3864.3,3864.2,8.24871563]
[1760137036631,0.7910969,3864.3,3864.2,7.24871563]
[1760137036841,0.7910969,3864.3,3864.2,6.24871563]
[1760137037061,0.7910969,3864.3,3864.2,3.07451563]
[1760137037348,0.7910969,3864.3,3864.2,1.83127143]
[1760137037737,0.7910969,3864.3,3864.2,2.75147143]
[1760137038129,0.7910969,3864.3,3864.2,2.45147143]
[1760137038623,0.1,3864.3,3864.2,1.87247143]
[1760137039066,2.03049542,3864.3,3864.2,2.45147143]
[1760137039226,0.7910969,3864.3,3864.2,1.23]
[1760137039559,1.18827041,3864.3,3864.2,8.03]
[1760137039916,0.49717351,3864.3,3864.2,8.03]
[1760137040118,1.18827041,3864.3,3864.2,8.03]
[1760137040414,0.1,3864.3,3864.2,8.03]
[1760137040644,0.1456,3866.6,3864.2,9.26]
[1760137040645,0.39712151,3864.9,3864.2,9.26]
[1760137040953,0.1456,3866.6,3864.2,8.86290428]
[1760137041135,0.6910969,3864.5,3864.2,8.86290428]
[1760137041340,0.1456,3866.6,3864.2,8.86290428]
[1760137041528,0.6910969,3864.3,3864.2,8.86290428]
[1760137041730,0.6910969,3864.7,3864.2,8.86290428]
[1760137041937,0.1456,3866.6,3864.2,8.86290428]
[1760137041938,0.1456,3866.6,3864.2,10.09290428]
[1760137042769,0.0273,3867.4,3864.3,0.472]
[1760137042945,0.0273,3867.4,3864.4,6.8]
[1760137043298,0.005,3867.9,3864.5,0.4641]
[1760137043569,0.1461,3867.8,3864.6,6.8]
[1760137043778,0.1461,3867.8,3864.7,0.4641]
[1760137043982,0.005,3867.9,3864.8,6.8]
[1760137044477,0.005,3867.9,3864.9,0.4641]
[1760137044673,0.005,3867.9,3865.1,0.30890309]
[1760137044983,0.005,3867.9,3864.9,0.4641]
[1760137044984,0.1743,3867.8,3864.9,0.4641]
[1760137045140,0.1758,3867.7,3864.8,8.03]
[1760137045469,1.29737067,3867.2,3864.8,8.03]
[1760137045639,0.0273,3867.6,3864.8,8.03]
[1760137045640,0.0273,3867.1,3864.8,8.03]
[1760137045840,1.21782416,3867.0,3864.8,8.03]
[1760137046038,0.0273,3867.1,3864.8,9.26]
[1760137046965,0.1485,3867.7,3864.9,0.4641]
[1760137047443,1.21444827,3867.1,3864.9,1.23]
[1760137047638,0.6910969,3867.0,3864.9,1.23]
[1760137047839,0.6910969,3866.5,3864.9,1.2259]
[1760137048546,1.29201387,3866.4,3864.9,1.2259]
[1760137048940,0.6910969,3866.5,3864.9,1.2259]
[1760137048941,0.1485,3867.7,3864.9,1.2259]
[1760137049273,0.1485,3867.7,3864.9,2.4559]
[1760137049473,0.1485,3867.7,3865.0,0.4641]
[1760137049879,0.005,3867.9,3865.0,0.4641]
[1760137050078,0.005,3867.9,3866.6,0.30890309]
[1760137050286,0.005,3867.9,3865.0,0.4641]
[1760137050485,0.005,3867.9,3865.0,1.6941]
[1760137050697,0.005,3867.9,3865.3,0.30890309]
[1760137050879,0.005,3867.9,3867.8,0.231]
[1760137051084,0.006,3868.9,3867.8,0.231]
[1760137051085,0.006,3868.9,3867.8,0.6951]
[1760137051473,0.006,3868.9,3866.4,0.6951]
[1760137051874,0.006,3868.9,3866.5,0.4641]
[1760137052300,0.006,3868.9,3866.5,0.77300309]
[1760137052610,0.006,3868.9,3866.5,0.4641]
[1760137052785,0.006,3868.9,3866.6,0.4641]
[1760137053201,0.006,3868.9,3866.6,1.6941]
[1760137053602,0.006,3868.9,3866.7,0.4641]
[1760137053907,0.001,3867.7,3866.7,0.4641]
[1760137054701,0.001,3867.7,3866.7,1.6941]
[1760137055912,0.001,3867.7,3866.8,0.4641]
[1760137056807,0.001,3868.1,3866.8,0.4641]
[1760137057405,0.001,3868.1,3866.8,1.6941]
[1760137057714,0.001,3868.1,3866.8,1.6671677]
[1760137057909,0.39671699,3867.8,3866.8,1.23]
[1760137058803,0.39671699,3867.8,3866.8,2.46]
[1760137059806,0.39671699,3867.8,3866.9,0.4641]
[1760137060601,0.6910969,3867.4,3866.8,3.5458]
[1760137060904,0.39671699,3867.8,3866.8,3.5458]
[1760137061112,0.6910969,3867.9,3866.8,3.5458]
[1760137061312,0.39637596,3867.3,3866.8,4.7758]
[1760137061517,0.001,3868.1,3866.9,0.4641]
[1760137061818,0.001,3868.1,3866.8,4.7758]
[1760137062700,0.001,3868.1,3866.8,6.0058]
[1760137063922,0.001,3868.1,3866.9,0.4641]
[1760137064909,0.001,3868.1,3866.8,7.2358]
[1760137065285,0.6910969,3867.9,3866.8,7.2358]
[1760137065593,0.001,3868.1,3866.8,8.4658]
[1760137065594,0.6910969,3867.8,3866.8,8.4658]
[1760137065796,0.6910969,3867.6,3866.8,8.3658]
[1760137066112,0.6910969,3867.8,3866.8,8.322]
[1760137066422,0.6910969,3867.3,3866.8,8.322]
[1760137066585,0.7461969,3867.3,3866.8,8.322]
[1760137066785,0.1205,3867.9,3866.8,8.322]
[1760137066786,0.6910969,3867.1,3866.8,9.30096837]
[1760137067500,0.1205,3867.9,3866.8,9.30096837]
[1760137067715,0.6910969,3867.8,3866.8,9.30096837]
[1760137068008,0.001,3868.1,3866.8,9.30096837]
[1760137068207,0.001,3868.1,3866.8,10.53096837]
[1760137068412,0.6910969,3867.9,3866.8,9.29039016]
[1760137068594,0.001,3868.1,3866.8,9.29039016]
[1760137069309,0.001,3868.1,3866.9,0.4665]
[1760137069883,0.001,3868.1,3866.8,10.52039016]
[1760137070097,0.001,3868.1,3866.8,10.43628407]
[1760137070282,0.0557,3868.0,3866.8,9.18159854]
[1760137070503,0.1756,3867.9,3866.8,9.18159854]
[1760137070678,0.001,3868.1,3866.8,9.18159854]
[1760137070883,0.65989425,3867.7,3866.8,10.41159854]
[1760137071095,0.65989425,3867.7,3866.8,10.41359854]
[1760137071886,0.6910969,3866.9,3866.8,10.41359854]
[1760137072105,0.65989425,3867.7,3866.8,10.41359854]
[1760137072310,0.0285,3867.6,3866.8,11.64359854]
[1760137072518,0.6910969,3866.9,3866.8,11.64359854]
[1760137072714,0.0285,3867.6,3866.8,11.64359854]
[1760137072922,0.65989425,3867.7,3866.8,11.64359854]
[1760137073440,0.0285,3867.6,3866.8,11.64359854]
[1760137073739,0.65989425,3867.7,3866.8,12.87359854]
[1760137073740,0.0285,3867.5,3866.8,12.87359854]
[1760137073934,0.6910969,3866.9,3866.8,12.87359854]
[1760137074136,0.65989425,3867.7,3866.8,13.34759854]
[1760137074339,0.65989425,3867.7,3866.8,12.87359854]
[1760137075131,0.6910969,3867.1,3866.8,14.10359854]
[1760137075446,0.6910969,3866.9,3866.8,14.10359854]
[1760137075644,0.65989425,3867.7,3866.8,14.10359854]
[1760137075862,0.0285,3866.9,3866.8,13.73459854]
[1760137076011,0.0717,3866.9,3866.8,13.26109797]
[1760137076447,0.0717,3866.9,3866.8,14.08757133]
[1760137077024,0.65989425,3867.7,3866.8,14.08757133]
[1760137077349,0.6910969,3866.9,3866.8,14.08757133]
[1760137077519,0.0717,3866.9,3866.8,14.08757133]
[1760137077720,0.7627969,3866.9,3866.8,15.31757133]
[1760137078021,0.0717,3866.9,3866.8,15.31757133]
[1760137079153,0.7627969,3866.9,3866.8,16.54757133]
[1760137079451,0.0717,3866.9,3866.8,16.54757133]
[1760137079852,0.0717,3866.9,3866.8,15.75457133]
[1760137080234,0.0717,3866.9,3866.8,15.73957133]
[1760137080469,0.7627969,3866.9,3866.8,16.96957133]
[1760137080665,0.0717,3866.9,3866.8,16.96957133]
[1760137080835,0.0717,3866.9,3866.8,16.5645853]
[1760137081371,0.7627969,3866.9,3866.8,16.03051666]
[1760137081667,0.0717,3866.9,3866.8,16.03051666]
[1760137081866,0.7627969,3866.9,3866.8,17.26051666]
[1760137082242,0.0717,3866.9,3866.8,17.26051666]
[1760137082571,0.7627969,3866.9,3866.8,17.26051666]
[1760137082869,0.0717,3866.9,3866.8,17.26051666]
[1760137083396,0.7627969,3866.9,3866.8,18.49051666]
[1760137084876,0.7627969,3866.9,3866.8,19.31682858]
[1760137085365,0.6910969,3867.5,3866.8,19.31682858]
[1760137085671,0.0717,3867.4,3866.8,19.31682858]
[1760137085858,0.65989425,3867.7,3866.8,19.31682858]
[1760137085859,0.6910969,3866.9,3866.8,19.31682858]
[1760137086172,0.7627969,3866.9,3866.8,20.54682858]
[1760137086374,0.0717,3866.9,3866.8,20.54682858]
[1760137086754,0.65989425,3867.7,3866.8,20.54682858]
[1760137086957,0.0717,3867.6,3866.8,20.54682858]
[1760137087222,0.6910969,3867.2,3866.8,20.54682858]
[1760137087400,0.6910969,3867.2,3866.8,21.77682858]
[1760137087598,0.6910969,3867.0,3866.8,21.77682858]
[1760137087919,0.6910969,3866.9,3866.8,21.77682858]
[1760137088221,0.6910969,3867.3,3866.8,21.77682858]
[1760137088424,0.6920969,3866.9,3866.8,21.61392858]
[1760137088626,0.7637969,3866.9,3866.8,21.61392858]
[1760137088800,0.0727,3866.9,3866.8,22.44112858]
[1760137088991,0.0727,3866.9,3866.8,20.03422812]
[1760137089424,0.7637969,3866.9,3866.8,18.03422812]
[1760137089724,0.001,3866.9,3866.8,17.75952812]
[1760137090095,0.001,3866.9,3866.8,18.41192812]
[1760137090524,0.0727,3866.9,3866.8,18.13082812]
[1760137090725,0.001,3866.9,3866.8,17.74272812]
[1760137090924,0.0727,3866.9,3866.8,17.74272812]
[1760137091136,0.7637969,3866.9,3866.8,17.74272812]
[1760137091510,0.7637969,3866.9,3866.8,18.97272812]
[1760137091706,0.001,3866.9,3866.8,18.97272812]
[1760137092123,0.001,3866.9,3866.8,17.70047853]
[1760137092124,0.0727,3866.9,3866.8,17.70047853]
[1760137092321,0.0727,3866.9,3866.8,16.44258301]
[1760137092620,0.7637969,3866.9,3866.8,16.44258301]
[1760137092795,0.7637969,3866.9,3866.8,17.67258301]
[1760137093000,0.0727,3866.9,3866.8,16.46834177]
[1760137093201,0.7637969,3866.9,3866.8,16.46834177]
[1760137093402,0.0727,3866.9,3866.8,16.46834177]
[1760137093827,0.7637969,3866.9,3866.8,16.43834177]
[1760137094029,0.0727,3866.9,3866.8,17.21434177]
[1760137094342,0.0727,3866.9,3866.8,15.98739046]
[1760137094534,0.7637969,3866.9,3866.8,15.98739046]
[1760137094712,0.0727,3866.9,3866.8,13.98420392]
[1760137094903,0.0727,3866.9,3866.8,11.58068897]
[1760137095504,0.0727,3866.9,3866.8,12.81068897]
[1760137095947,0.7637969,3866.9,3866.8,11.96808897]
[1760137096243,0.7637969,3866.9,3866.8,11.57998897]
[1760137096647,0.0727,3866.9,3866.8,11.57998897]
[1760137096816,0.7637969,3866.9,3866.8,11.59272349]
[1760137097002,0.0727,3866.9,3866.8,11.59272349]
[1760137097941,0.54168331,3866.9,3866.8,11.18888055]
[1760137098105,0.0727,3866.9,3866.8,11.18888055]
[1760137098307,0.0727,3866.9,3866.8,12.41888055]
[1760137098528,0.7637969,3866.9,3866.8,12.41888055]
[1760137098852,0.0727,3866.9,3866.8,11.19678055]
[1760137099032,1.29168331,3866.9,3866.8,11.19678055]
[1760137099238,1.29168331,3866.9,3866.8,9.179499]
[1760137099439,1.29168331,3866.9,3866.8,7.179499]
[1760137099649,1.29168331,3866.9,3866.8,8.008784]
[1760137100031,0.7637969,3866.9,3866.8,8.008784]
[1760137100358,1.29168331,3866.9,3866.8,7.955684]
[1760137100559,0.7637969,3866.9,3866.8,4.75415386]
[1760137100876,0.7637969,3866.9,3866.8,4.95799111]
[1760137101039,0.0727,3866.9,3866.8,4.94919111]
[1760137101360,0.0727,3866.9,3866.8,4.75079111]
[1760137101561,0.7637969,3866.9,3866.8,3.75079111]
[1760137101767,0.0727,3866.9,3866.8,2.75079111]
[1760137101930,0.7637969,3866.9,3866.8,1.51789111]
[1760137102130,0.0727,3866.9,3866.8,0.51913286]
[1760137102331,1.7637969,3866.9,3866.8,0.50813286]
[1760137102549,0.7637969,3866.9,3866.8,0.50813286]
[1760137102752,0.7637969,3866.9,3866.7,1.97913286]
[1760137102941,0.0717,3866.8,3866.7,1.32763872]
[1760137103344,0.7627969,3866.8,3866.7,0.92375203]
[1760137103651,0.0717,3866.8,3866.7,2.1498591]
[1760137104058,0.7627969,3866.8,3866.7,1.6930591]
[1760137105059,0.7627969,3866.8,3866.7,2.9230591]
[1760137105361,1.42403936,3866.8,3866.7,2.9230591]
[1760137105859,1.42403936,3866.8,3866.7,2.8974591]
[1760137106048,1.42403936,3866.8,3866.7,2.7062591]
[1760137106564,1.42403936,3866.8,3866.7,3.53237903]
[1760137106742,0.73294246,3866.8,3866.7,3.53237903]
[1760137106937,1.42403936,3866.8,3866.7,3.53237903]
[1760137107558,0.73294246,3866.8,3866.7,2.99647903]
[1760137107762,1.42403936,3866.8,3866.7,4.22647903]
[1760137108059,1.42403936,3866.8,3866.7,4.02607903]
[1760137108255,0.73294246,3866.8,3866.7,4.02607903]
[1760137108559,0.73294246,3866.8,3866.7,3.96587903]
[1760137108758,0.73294246,3866.8,3866.7,3.87167903]
[1760137108964,1.42403936,3866.8,3866.7,3.87167903]
[1760137109164,1.42403936,3866.8,3866.7,5.10167903]
[1760137109528,1.42403936,3866.8,3866.7,4.6977942]
[1760137109734,1.42403936,3866.8,3866.7,3.6977942]
[1760137110242,1.42403936,3866.8,3866.7,2.6977942]
[1760137110533,1.42403936,3866.8,3866.7,3.9277942]
[1760137111468,1.42403936,3866.8,3866.7,3.4952942]
[1760137111663,1.42403936,3866.8,3866.7,2.4952942]
[1760137111664,0.73294246,3866.8,3866.7,2.4952942]
[1760137111853,1.42403936,3866.8,3866.7,3.7252942]
[1760137112370,0.73294246,3866.8,3866.7,3.7252942]
[1760137112537,1.42403936,3866.8,3866.7,3.7252942]
[1760137112864,1.42403936,3866.8,3866.7,3.32137084]
[1760137113481,0.73294246,3866.8,3866.7,4.55137084]
[1760137113656,1.42403936,3866.8,3866.7,4.55137084]
[1760137113862,0.73294246,3866.8,3866.7,4.55137084]
[1760137114162,1.42403936,3866.8,3866.7,4.55137084]
[1760137114483,1.42403936,3866.8,3866.7,4.14615129]
[1760137114654,1.42403936,3866.8,3866.7,5.37615129]
[1760137115382,0.73294246,3866.8,3866.7,5.37615129]
[1760137115584,1.42403936,3866.8,3866.7,5.37615129]
[1760137115751,1.42403936,3866.8,3866.7,4.97226554]
[1760137115953,1.42403936,3866.8,3866.7,6.20226554]
[1760137116761,0.73294246,3866.8,3866.7,6.20226554]
[1760137116961,2.42403936,3866.8,3866.7,6.20226554]
[1760137117155,1.42403936,3866.8,3866.7,6.20226554]
[1760137117357,0.73294246,3866.8,3866.7,7.43226554]
[1760137117560,1.42403936,3866.8,3866.7,7.43226554]
[1760137117769,1.42403936,3866.8,3866.7,6.77146554]
[1760137117979,0.73294246,3866.8,3866.7,6.77146554]
[1760137118177,1.42403936,3866.8,3866.7,6.77146554]
[1760137118754,1.42403936,3866.8,3866.7,8.00146554]
[1760137118755,0.73294246,3866.8,3866.7,8.00146554]
[1760137118951,1.42403936,3866.8,3866.7,8.00146554]